bitfinex/quotes_SOLUSD_20251218
["timestamp","ask_amount","ask_price","bid_price","bid_amount"]
[1766089751799,10.01,117.89,117.86,6.84465977]
[1766089752006,10.01,117.89,117.85,7.50465977]
[1766089752393,10.01,117.89,117.85,0.66]
[1766089752593,10.01,117.89,117.85,7.50465977]
[1766089753307,5.06147887,117.88,117.85,0.66]
[1766089753506,10.01,117.89,117.85,0.66]
[1766089753810,5.06359435,117.88,117.83,0.67]
[1766089753994,5.06359435,117.87,117.84,6.84465977]
[1766089754190,11.15767296,117.91,117.86,0.67]
[1766089754390,15.08133775,117.9,117.86,0.67]
[1766089754585,5.06133775,117.89,117.86,0.67]
[1766089755420,5.06133775,117.89,117.84,8.48568445]
[1766089755421,5.06133775,117.89,117.84,0.67]
[1766089755605,5.06133775,117.89,117.85,7.51465977]
[1766089756614,4.43626691,117.94,117.88,6.84465977]
[1766089756915,0.72,117.95,117.92,6.84465977]
[1766089757118,5.4,117.98,117.93,6.84465977]
[1766089757320,10.02,117.98,117.93,6.84465977]
[1766089757729,0.72,118.0,117.95,6.84465977]
[1766089757907,16.86465977,117.99,117.94,7.44465977]
[1766089758097,10.02,117.99,117.94,0.6]
[1766089758443,0.72,118.02,117.95,7.44465977]
[1766089758604,10.02,118.01,117.95,7.44465977]
[1766089758805,16.86465977,118.01,117.95,7.44465977]
[1766089758996,16.86465977,118.01,117.93,8.47937085]
[1766089758997,6.84465977,118.0,117.93,8.47937085]
[1766089759198,0.72,117.98,117.93,6.84465977]
[1766089759414,0.72,117.96,117.89,0.6]
[1766089759609,7.56465977,117.96,117.91,6.84465977]
[1766089759807,0.72,117.96,117.91,6.84465977]
[1766089760826,7.56465977,117.96,117.91,6.84465977]
[1766089761303,0.72,117.96,117.91,6.84465977]
[1766089761794,7.56465977,117.96,117.91,6.84465977]
[1766089762002,0.72,117.96,117.91,6.84465977]
[1766089762201,7.56465977,117.96,117.91,6.84465977]
[1766089762834,0.72,117.96,117.91,6.84465977]
[1766089763832,7.56465977,117.96,117.9,7.44465977]
[1766089764015,0.72,117.96,117.91,6.84465977]
[1766089764529,6.84465977,117.96,117.91,6.84465977]
[1766089764711,0.72,117.95,117.91,6.84465977]
[1766089765030,0.72,117.94,117.89,6.84465977]
[1766089765408,10.02,117.93,117.88,7.44465977]
[1766089765618,16.86465977,117.93,117.88,0.6]
[1766089767012,0.72,117.92,117.88,0.6]
[1766089767217,0.72,117.9,117.86,6.84465977]
[1766089767539,0.72,117.9,117.85,7.44465977]
[1766089767849,0.72,117.89,117.84,15.93021309]
[1766089768151,0.72,117.91,117.86,7.44465977]
[1766089768310,7.56465977,117.91,117.86,7.44465977]
[1766089769229,0.72,117.9,117.85,0.6]
[1766089769414,0.72,117.9,117.85,15.92998869]
[1766089770115,0.72,117.9,117.85,7.44465977]
[1766089770611,6.84465977,117.9,117.85,0.6]
[1766089770944,7.56465977,117.9,117.84,7.44465977]
[1766089771116,0.72,117.89,117.84,7.44465977]
[1766089771320,7.56465977,117.89,117.84,0.6]
[1766089771530,0.72,117.88,117.84,0.6]
[1766089772044,10.43767296,117.91,117.84,0.6]
[1766089772045,10.02,117.93,117.84,8.80994492]
[1766089772351,0.72,117.89,117.84,16.74465977]
[1766089772528,6.84465977,117.9,117.83,15.93109922]
[1766089772529,0.72,117.88,117.83,15.93109922]
[1766089772927,0.72,117.88,117.84,6.84465977]
[1766089773843,0.72,117.92,117.88,0.6]
[1766089774150,0.72,117.91,117.86,6.84465977]
[1766089774445,0.72,117.9,117.85,7.44465977]
[1766089776260,0.72,117.9,117.85,9.08521902]
[1766089776431,0.72,117.9,117.85,0.6]
[1766089776751,0.72,117.9,117.85,7.44465977]
[1766089776922,0.72,117.9,117.85,9.08525274]
[1766089777122,0.72,117.9,117.86,6.84465977]
[1766089777557,0.72,117.93,117.88,6.84465977]
[1766089777731,0.72,117.93,117.89,7.44465977]
[1766089777931,0.72,117.93,117.9,6.84465977]
[1766089778247,0.72,117.93,117.89,7.44465977]
[1766089779823,27.30233273,117.95,117.89,15.92709674]
[1766089780024,0.72,117.94,117.89,7.44465977]
[1766089780251,0.72,117.94,117.89,15.92711641]
[1766089780646,0.72,117.94,117.9,6.84465977]
[1766089782152,0.72,117.94,117.9,7.44465977]
[1766089782350,0.72,117.94,117.91,6.84465977]
[1766089782540,25.3124343,117.96,117.91,6.84465977]
[1766089782745,24.6224343,117.96,117.9,0.6]
[1766089782958,0.69,117.95,117.9,7.44465977]
[1766089783658,0.69,117.95,117.91,6.84465977]
[1766089784649,0.69,117.93,117.89,6.84465977]
[1766089784847,0.69,117.93,117.9,6.84465977]
[1766089785035,19.73767296,117.95,117.91,6.84465977]
[1766089785223,0.69,117.94,117.91,6.84465977]
[1766089785550,6.84465977,117.94,117.86,21.21075612]
[1766089785750,0.69,117.92,117.87,8.48349262]
[1766089785926,0.69,117.92,117.88,6.84465977]
[1766089786126,0.69,117.91,117.86,0.6]
[1766089786355,0.69,117.91,117.87,15.32800331]
[1766089786743,0.69,117.91,117.88,6.84465977]
[1766089787356,0.69,117.93,117.9,6.84465977]
[1766089787735,0.69,117.93,117.91,6.84465977]
[1766089787942,0.69,117.96,117.91,6.84465977]
[1766089788257,0.69,117.94,117.86,0.6]
[1766089788448,0.69,117.94,117.85,9.3]
[1766089788449,0.69,117.93,117.89,6.84465977]
[1766089788849,0.69,117.93,117.9,6.84465977]
[1766089789055,9.99,117.95,117.91,6.84465977]
[1766089789255,0.69,117.95,117.9,8.48120313]
[1766089789447,0.69,117.95,117.91,11.13344666]
[1766089791763,0.69,117.95,117.9,11.13344666]
[1766089792161,0.69,117.94,117.9,11.13344666]
[1766089792661,11.13344666,117.95,117.88,8.48301506]
[1766089792841,9.99,117.95,117.91,11.13344666]
[1766089793055,0.69,117.94,117.91,11.13344666]
[1766089793255,9.99,117.95,117.91,11.13344666]
[1766089793457,0.69,117.95,117.92,11.13344666]
[1766089793666,10.43767296,117.96,117.93,11.13344666]
[1766089793865,8.47566807,117.99,117.95,11.13344666]
[1766089793866,0.69,117.99,117.95,11.13344666]
[1766089794271,0.69,118.01,117.96,11.13344666]
[1766089794575,0.69,118.01,117.96,11.73344666]
[1766089794790,0.69,118.01,117.97,11.13344666]
[1766089795149,0.69,118.01,117.94,0.6]
[1766089795356,0.69,118.01,117.97,11.13344666]
[1766089795949,0.69,118.01,117.96,0.6]
[1766089796145,0.69,118.01,117.97,11.13344666]
[1766089797561,0.69,118.01,117.97,11.73344666]
[1766089797774,0.69,118.0,117.95,11.13344666]
[1766089798153,11.82344666,118.0,117.95,11.13344666]
[1766089798355,11.82344666,118.0,117.91,0.6]
[1766089798356,9.3,117.99,117.91,0.6]
[1766089798562,0.69,117.97,117.93,11.13344666]
[1766089799158,0.69,117.97,117.92,0.6]
[1766089799375,0.69,117.97,117.93,11.13344666]
[1766089799758,0.69,117.97,117.94,11.13344666]
[1766089800157,0.69,117.99,117.94,8.47852675]
[1766089800380,0.69,117.97,117.92,8.4799389]
[1766089800554,0.69,117.97,117.92,11.73344666]
[1766089800754,0.69,117.96,117.92,0.6]
[1766089800954,0.69,117.96,117.92,11.13344666]
[1766089801166,19.73767296,118.0,117.91,0.6]
[1766089801167,10.43767296,118.0,117.95,11.73344666]
[1766089801364,0.68,118.0,117.96,11.13344666]
[1766089801564,9.3,118.02,117.97,11.13344666]
[1766089801772,0.68,118.0,117.96,11.13344666]
[1766089802716,0.88,118.05,117.99,11.13344666]
[1766089802932,11.13344666,118.02,117.95,9.07809783]
[1766089803241,0.68,117.98,117.92,0.6]
[1766089803502,0.68,117.98,117.89,0.84824836]
[1766089803503,7.17464114,118.03,117.94,11.13344666]
[1766089803675,0.68,118.0,117.96,11.13344666]
[1766089803872,29.84850003,118.05,118.0,0.6]
[1766089803873,0.88,118.05,118.0,0.6]
[1766089804093,0.2,118.05,118.01,11.73344666]
[1766089804305,0.2,118.05,117.99,11.73344666]
[1766089804306,11.33344666,118.05,117.99,11.73344666]
[1766089804482,0.68,118.04,117.99,20.20835021]
[1766089804874,0.68,118.04,117.99,11.73344666]
[1766089805508,0.2,118.05,118.03,11.73344666]
[1766089805801,0.2,118.05,118.02,11.13344666]
[1766089806405,0.2,118.05,118.02,20.20648331]
[1766089806579,0.2,118.05,118.03,11.13344666]
[1766089806779,0.2,118.05,118.02,20.20645944]
[1766089807207,0.2,118.05,118.02,11.73344666]
[1766089807389,0.88,118.05,118.0,11.13344666]
[1766089807589,0.68,118.02,117.96,0.6]
[1766089807799,0.68,118.02,117.97,20.210064]
[1766089808097,0.68,118.02,117.97,11.73344666]
[1766089808303,0.68,118.02,117.96,20.2105728]
[1766089808500,0.68,118.02,117.97,11.13344666]
[1766089808693,0.68,118.02,117.97,11.73344666]
[1766089809021,0.68,118.02,117.97,0.6]
[1766089809481,11.81344666,118.02,117.97,0.6]
[1766089809684,0.68,118.01,117.97,0.6]
[1766089809879,0.68,118.01,117.96,11.13344666]
[1766089810096,0.68,118.01,117.94,8.47851979]
[1766089810303,0.68,118.0,117.95,19.61156152]
[1766089810496,0.68,118.01,117.95,20.21156152]
[1766089810713,11.81344666,118.01,117.95,20.21156152]
[1766089810906,0.68,118.0,117.95,20.21156152]
[1766089811394,0.68,118.0,117.95,11.73344666]
[1766089811706,0.68,118.0,117.95,0.6]
[1766089812396,0.68,118.0,117.95,20.21104669]
[1766089813107,0.68,118.0,117.95,11.73344666]
[1766089813487,11.81344666,118.0,117.95,0.6]
[1766089814096,0.68,118.0,117.95,20.21153304]
[1766089814308,0.68,118.0,117.95,9.07808638]
[1766089814499,0.68,118.0,117.96,11.13344666]
[1766089814896,0.71,118.03,117.98,11.13344666]
[1766089815212,0.71,118.03,117.98,0.6]
[1766089815527,0.71,118.02,117.98,0.6]
[1766089815888,28.40890357,118.05,118.02,0.6]
[1766089815889,0.2,118.05,118.02,0.6]
[1766089816202,0.2,118.07,118.03,11.53344666]
[1766089816504,0.2,118.07,118.03,11.13344666]
[1766089816807,0.91,118.07,118.02,11.13344666]
[1766089817037,0.91,118.07,118.02,20.00617114]
[1766089817212,0.91,118.07,118.03,19.60578587]
[1766089817393,0.91,118.07,118.04,11.13344666]
[1766089817809,0.91,118.07,118.03,8.47233921]
[1766089818014,0.91,118.07,118.03,19.60578587]
[1766089818390,0.91,118.07,118.03,8.47233921]
[1766089818589,0.2,118.07,118.04,11.13344666]
[1766089818800,0.71,118.11,118.06,11.13344666]
[1766089819108,0.71,118.11,118.07,11.13344666]
[1766089819502,0.71,118.11,118.06,0.2]
[1766089819503,0.71,118.11,118.06,11.33344666]
[1766089819814,0.71,118.11,118.07,11.13344666]
[1766089822224,0.2,118.12,118.09,11.13344666]
[1766089822523,0.2,118.12,118.09,8.66783129]
[1766089822697,0.2,118.12,118.1,11.13344666]
[1766089823100,0.2,118.12,118.09,19.60127795]
[1766089823301,0.2,118.12,118.05,18.9370436]
[1766089823302,0.71,118.1,118.05,17.7505382]
[1766089823528,0.71,118.1,118.05,28.88398486]
[1766089823712,0.71,118.1,118.05,9.28]
[1766089823914,0.71,118.1,118.04,19.60485998]
[1766089824115,21.57111962,118.08,118.02,9.28]
[1766089824421,0.71,118.06,118.01,19.60723221]
[1766089824728,0.71,118.06,118.02,11.13344666]
[1766089825620,0.71,118.06,118.01,0.2]
[1766089825808,0.71,118.06,118.01,11.13344666]
[1766089826207,10.43767296,118.08,118.03,11.13344666]
[1766089826410,0.71,118.07,118.02,11.13344666]
[1766089826627,0.71,118.07,118.02,19.6063293]
[1766089826824,0.71,118.07,118.01,8.67359703]
[1766089827012,0.71,118.07,118.01,11.13344666]
[1766089827013,0.71,118.06,118.01,11.13344666]
[1766089827207,11.13344666,118.06,118.0,30.04529503]
[1766089827521,11.13344666,118.05,117.99,17.75504323]
[1766089827824,0.71,118.02,117.97,11.13344666]
[1766089828006,0.71,118.02,117.97,8.47652214]
[1766089828332,0.71,118.02,117.97,19.6099688]
[1766089828721,0.71,118.02,117.96,17.95714487]
[1766089828923,0.71,118.02,117.97,11.13344666]
[1766089829429,11.13344666,118.01,117.95,8.47756482]
[1766089829602,0.71,117.99,117.94,11.13344666]
[1766089829812,0.71,117.99,117.95,19.6112257]
[1766089830127,0.71,117.99,117.96,8.47734364]
[1766089830304,0.71,117.99,117.95,19.6115078]
[1766089830722,0.71,117.99,117.95,8.47806114]
[1766089830929,0.71,117.99,117.95,19.6115078]
[1766089831831,0.71,118.02,117.98,11.13344666]
[1766089832800,0.71,118.04,118.0,11.13344666]
[1766089833019,9.28,118.05,118.02,11.13344666]
[1766089833618,9.28,118.05,118.01,11.13344666]
[1766089834125,9.99,118.05,118.0,11.13344666]
[1766089834309,11.13344666,118.02,117.99,10.43767296]
[1766089834502,0.71,118.01,117.97,19.61015441]
[1766089834707,0.71,118.01,117.97,11.13344666]
[1766089835428,0.71,118.01,117.96,19.81087858]
[1766089835610,0.71,118.01,117.96,11.33344666]
[1766089835809,0.71,118.01,117.95,28.89139334]
[1766089836335,0.71,118.0,117.95,28.89139334]
[1766089837243,0.71,118.0,117.95,9.28]
[1766089837535,0.71,118.03,117.97,11.13344666]
[1766089837742,0.71,118.02,117.97,11.13344666]
[1766089839212,0.71,118.02,117.97,19.60954889]
[1766089839523,0.71,118.02,117.98,11.13344666]
[1766089839824,0.71,118.05,118.0,11.13344666]
[1766089840038,0.71,118.05,117.99,0.2]
[1766089840211,0.71,118.04,117.99,11.13344666]
[1766089840410,11.13344666,118.03,117.98,19.71767296]
[1766089840608,0.71,118.02,117.98,9.28]
[1766089841257,0.71,118.0,117.95,10.43767296]
[1766089841536,0.71,118.0,117.95,30.04903317]
[1766089841706,0.71,118.0,117.95,18.91558651]
[1766089841914,0.71,118.0,117.95,30.04903317]
[1766089842131,0.71,118.0,117.96,8.47742176]
[1766089842432,0.71,118.0,117.95,30.04898662]
[1766089842634,0.71,118.0,117.96,19.61088617]
[1766089842821,0.71,118.0,117.95,30.04894095]
[1766089843027,0.71,118.0,117.95,10.43767296]
[1766089843529,0.71,118.0,117.95,30.04914229]
[1766089845043,0.71,118.0,117.95,18.91569563]
[1766089845230,0.71,118.0,117.95,30.04914229]
[1766089845936,0.71,118.0,117.95,21.57111962]
[1766089846136,0.71,118.0,117.95,30.04928269]
[1766089846335,0.71,118.0,117.96,11.13344666]
[1766089846516,9.97,118.02,117.97,11.13344666]
[1766089846727,21.57111962,118.03,117.98,11.13344666]
[1766089846728,10.43767296,118.03,117.98,11.13344666]
[1766089846910,11.12767296,118.03,117.98,11.13344666]
[1766089847235,0.69,118.02,117.98,11.13344666]
[1766089847637,0.69,117.99,117.95,10.43767296]
[1766089847816,0.69,117.99,117.95,30.04924917]
[1766089848406,0.69,117.99,117.94,17.75882854]
[1766089848819,0.69,117.99,117.93,0.2]
[1766089848820,0.69,117.98,117.93,19.81289359]
[1766089849417,0.69,117.98,117.92,39.33131056]
[1766089849418,11.82344666,117.98,117.92,39.33131056]
[1766089849637,11.82344666,117.98,117.93,19.61298162]
[1766089849638,0.69,117.98,117.93,19.61298162]
[1766089849819,0.69,117.98,117.93,11.13344666]
[1766089850223,5.19598496,117.97,117.92,39.53116412]
[1766089850438,0.69,117.95,117.9,8.48143938]
[1766089850620,0.69,117.95,117.9,11.33344666]
[1766089850938,0.69,117.95,117.91,11.13344666]
[1766089851312,0.69,117.95,117.92,8.47995752]
[1766089852056,0.69,117.95,117.91,15.33112834]
[1766089852218,0.69,117.95,117.9,8.68145543]
[1766089852414,0.69,117.95,117.9,15.33153891]
[1766089853040,0.69,117.95,117.9,36.53616826]
[1766089853416,0.69,117.95,117.9,8.48167427]
[1766089853621,0.69,117.94,117.89,35.34991456]
[1766089853936,0.69,117.94,117.89,35.14991456]
[1766089854661,0.69,117.94,117.9,6.85008348]
[1766089854821,0.69,117.94,117.89,35.14991456]
[1766089855018,0.69,117.94,117.89,19.81767296]
[1766089855321,0.69,117.93,117.89,0.1]
[1766089856619,0.69,117.95,117.89,7.15008348]
[1766089856832,0.69,117.95,117.89,16.43008348]
[1766089857114,0.69,117.95,117.9,6.85008348]
[1766089857320,7.54008348,117.97,117.91,7.05008348]
[1766089857539,5.12083385,117.96,117.92,6.85008348]
[1766089857755,0.69,117.97,117.92,6.85008348]
[1766089858120,0.69,117.97,117.92,8.48015742]
[1766089858321,0.69,117.97,117.92,15.3302409]
[1766089858832,0.69,117.97,117.92,15.5302409]
[1766089859041,0.69,118.0,117.95,6.85008348]
[1766089860156,0.69,118.0,117.96,6.85008348]
[1766089860326,9.49994492,118.02,117.97,6.85008348]
[1766089860527,5.12443678,118.01,117.97,6.85008348]
[1766089860724,5.12443678,118.01,117.95,8.4775717]
[1766089860725,0.69,117.99,117.95,9.28]
[1766089861226,8.80994492,118.01,117.91,9.28]
[1766089861227,0.71,117.95,117.91,9.28]
[1766089861463,0.71,117.94,117.89,15.43224067]
[1766089861633,0.71,117.94,117.89,6.95008348]
[1766089861827,0.71,117.93,117.89,0.1]
[1766089862552,10.01,117.95,117.9,6.85008348]
[1766089862756,10.01,117.95,117.89,0.1]
[1766089862757,0.71,117.93,117.89,0.1]
[1766089862937,0.71,117.93,117.89,6.95008348]
[1766089863557,0.71,117.93,117.89,0.1]
[1766089865158,6.85008348,117.92,117.89,0.1]
[1766089865340,0.71,117.91,117.89,0.1]
[1766089866859,0.71,117.91,117.86,8.48413019]
[1766089867363,0.71,117.91,117.86,15.33421367]
[1766089867748,5.11878976,117.9,117.86,8.48413019]
[1766089867934,0.71,117.91,117.86,8.48413019]
[1766089868146,0.71,117.91,117.86,15.33421367]
[1766089868336,0.71,117.89,117.85,8.78500813]
[1766089868537,7.56008348,117.91,117.85,15.63509161]
[1766089868732,0.71,117.89,117.84,10.43767296]
[1766089868940,0.71,117.86,117.83,0.1]
[1766089869631,0.71,117.85,117.83,0.1]
[1766089869964,0.71,117.84,117.79,6.85008348]
[1766089870130,0.71,117.84,117.78,9.3]
[1766089870131,0.71,117.82,117.77,0.4]
[1766089870337,0.71,117.82,117.77,6.85008348]
[1766089870835,0.71,117.82,117.77,8.8911197]
[1766089871034,0.71,117.82,117.79,6.85008348]
[1766089871275,0.71,117.82,117.77,8.8911197]
[1766089871494,0.71,117.82,117.78,6.85008348]
[1766089871676,0.71,117.84,117.8,6.85008348]
[1766089871839,11.14767296,117.86,117.81,6.85008348]
[1766089872039,5.11742804,117.85,117.81,6.85008348]
[1766089872346,0.71,117.85,117.79,8.48904693]
[1766089872678,0.68,117.84,117.79,15.33913041]
[1766089873144,0.68,117.84,117.8,6.85008348]
[1766089873754,0.68,117.84,117.8,15.33898689]
[1766089874049,0.68,117.87,117.83,6.85008348]
[1766089874250,0.68,117.87,117.84,6.85008348]
[1766089874554,9.98,117.89,117.85,6.85008348]
[1766089874760,5.10776729,117.88,117.85,6.85008348]
[1766089874966,0.68,117.88,117.84,6.85008348]
[1766089875358,0.68,117.88,117.83,0.4]
[1766089875564,0.68,117.88,117.83,6.85008348]
[1766089875942,0.68,117.87,117.82,6.85008348]
[1766089876742,0.68,117.87,117.82,8.88706821]
[1766089876950,0.68,117.87,117.83,6.85008348]
[1766089877448,0.68,117.87,117.82,6.85008348]
[1766089878156,0.68,117.86,117.81,24.63802383]
[1766089878355,0.68,117.86,117.82,6.85008348]
[1766089878554,0.68,117.86,117.82,15.33749791]
[1766089878865,18.78994492,117.88,117.83,6.85008348]
[1766089879064,0.68,117.88,117.84,6.85008348]
[1766089879458,0.68,117.88,117.83,6.85008348]
[1766089880342,0.68,117.86,117.83,6.85008348]
[1766089880570,0.68,117.88,117.84,6.85008348]
[1766089881446,0.68,117.88,117.83,6.85008348]
[1766089882056,0.68,117.87,117.81,9.3]
[1766089882374,0.68,117.87,117.82,6.85008348]
[1766089882576,15.33409222,117.87,117.8,10.43767296]
[1766089882784,15.33409222,117.87,117.74,45.07053965]
[1766089882785,0.68,117.84,117.76,21.22899152]
[1766089883096,0.68,117.83,117.78,6.85008348]
[1766089883871,0.68,117.82,117.77,6.85008348]
[1766089884071,19.73767296,117.84,117.72,0.72]
[1766089884072,0.68,117.78,117.72,0.72]
[1766089884470,0.68,117.77,117.72,6.85008348]
[1766089884651,0.68,117.77,117.72,15.34481674]
[1766089884846,0.68,117.77,117.71,9.3152731]
[1766089885071,0.68,117.77,117.72,6.85008348]
[1766089885248,19.24761788,117.8,117.71,8.5952731]
[1766089885452,9.3,117.79,117.74,6.85008348]
[1766089885648,0.68,117.78,117.74,6.85008348]
[1766089885866,0.68,117.78,117.73,6.85008348]
[1766089886373,0.68,117.78,117.71,0.82]
[1766089886374,0.68,117.77,117.71,0.82]
[1766089886555,0.68,117.77,117.72,6.85008348]
[1766089886755,0.68,117.77,117.71,0.82]
[1766089886981,0.68,117.77,117.73,6.85008348]
[1766089887164,0.68,117.77,117.71,0.82]
[1766089887363,0.68,117.76,117.67,8.80994492]
[1766089887564,0.68,117.71,117.66,6.85008348]
[1766089887770,0.68,117.73,117.66,0.72]
[1766089887970,9.3,117.78,117.72,6.85008348]
[1766089888276,9.3,117.78,117.73,6.85008348]
[1766089888277,0.68,117.77,117.73,6.85008348]
[1766089888780,0.68,117.79,117.75,6.85008348]
[1766089888986,9.3,117.83,117.77,6.85008348]
[1766089889171,9.3,117.83,117.78,6.85008348]
[1766089889172,0.68,117.82,117.78,6.85008348]
[1766089889357,0.68,117.82,117.79,6.85008348]
[1766089889558,0.68,117.87,117.81,7.57008348]
[1766089889772,0.68,117.87,117.83,6.85008348]
[1766089890583,4.43699952,117.93,117.86,6.85008348]
[1766089890584,0.68,117.92,117.86,6.85008348]
[1766089890791,0.68,117.92,117.86,0.72]
[1766089891092,0.68,117.93,117.88,6.85008348]
[1766089891456,0.68,117.91,117.87,6.85008348]
[1766089891670,0.68,117.91,117.86,6.85008348]
[1766089892172,0.68,117.91,117.88,6.85008348]
[1766089892369,0.68,117.93,117.89,6.85008348]
[1766089892760,8.47726798,117.97,117.9,6.85008348]
[1766089892761,0.68,117.96,117.9,6.85008348]
[1766089892964,0.68,117.95,117.9,6.85008348]
[1766089893178,0.68,117.95,117.91,6.85008348]
[1766089893377,0.68,117.95,117.9,7.57008348]
[1766089893884,0.68,117.95,117.91,6.85008348]
[1766089894072,0.68,117.95,117.88,0.72]
[1766089894259,0.68,117.94,117.9,6.85008348]
[1766089894574,17.28745825,117.96,117.86,10.02]
[1766089894575,0.68,117.92,117.86,10.02]
[1766089894759,0.68,117.91,117.86,0.72]
[1766089894956,0.68,117.91,117.87,6.85008348]
[1766089895975,0.68,117.91,117.88,6.85008348]
[1766089897464,0.68,117.91,117.84,0.72]
[1766089897660,0.68,117.91,117.87,6.85008348]
[1766089898991,0.68,117.91,117.86,0.72]
[1766089899177,0.68,117.91,117.87,6.85008348]
[1766089899383,0.68,117.88,117.81,10.02]
[1766089899564,0.68,117.88,117.83,6.85008348]
[1766089899890,0.68,117.87,117.82,6.85008348]
[1766089900077,6.85008348,117.88,117.8,6.85008348]
[1766089900078,0.68,117.85,117.8,6.85008348]
[1766089900464,7.53008348,117.85,117.79,0.72]
[1766089900686,6.85008348,117.87,117.82,6.85008348]
[1766089900891,0.68,117.85,117.77,21.94755911]
[1766089901195,0.68,117.84,117.78,0.72]
[1766089901588,0.68,117.84,117.79,7.57008348]
[1766089901774,0.68,117.82,117.76,9.3]
[1766089901975,0.68,117.82,117.77,6.85008348]
[1766089902215,0.68,117.81,117.76,0.72]
[1766089902510,0.68,117.81,117.77,6.85008348]
[1766089903106,0.68,117.81,117.74,21.95252869]
[1766089903295,0.68,117.81,117.76,6.85008348]
[1766089903489,6.85008348,117.8,117.72,30.63672386]
[1766089903698,0.65,117.79,117.75,6.85008348]
[1766089905103,0.65,117.79,117.74,6.85008348]
[1766089905296,0.65,117.79,117.73,9.21374681]
[1766089905512,0.65,117.78,117.73,6.85008348]
[1766089906515,0.65,117.76,117.72,0.1]
[1766089906698,0.65,117.76,117.73,2.02e-06]
[1766089906905,9.3,117.78,117.74,6.85008348]
[1766089906906,0.65,117.78,117.74,6.85008348]
[1766089907217,0.65,117.78,117.73,2.02e-06]
[1766089907513,0.65,117.8,117.76,6.85008348]
[1766089907810,0.65,117.8,117.75,6.85008348]
[1766089908519,0.65,117.8,117.73,10.43767498]
[1766089908520,0.65,117.79,117.73,10.43767498]
[1766089908722,0.65,117.79,117.74,15.34320086]
[1766089909223,0.65,117.79,117.76,6.85008348]
[1766089909390,0.65,117.82,117.77,6.85008348]
[1766089909590,7.50008348,117.81,117.76,6.85008348]
[1766089909918,0.65,117.8,117.76,6.85008348]
[1766089910497,0.65,117.8,117.75,6.85008348]
[1766089910697,0.65,117.79,117.75,6.85008348]
[1766089910929,0.65,117.79,117.73,19.65136751]
[1766089910930,0.65,117.77,117.73,2.02e-06]
[1766089911093,0.65,117.76,117.73,2.02e-06]
[1766089911499,6.85008348,117.76,117.73,2.02e-06]
[1766089911695,0.65,117.74,117.73,2.02e-06]
[1766089912822,0.65,117.76,117.73,2.02e-06]
[1766089913595,11.1710169,117.76,117.73,2.02e-06]
[1766089913894,0.65,117.75,117.73,2.02e-06]
[1766089914096,0.65,117.77,117.73,11.17101892]
[1766089914928,0.65,117.76,117.73,2.02e-06]
[1766089915123,0.65,117.75,117.73,2.02e-06]
[1766089915906,0.65,117.74,117.73,2.02e-06]
[1766089916108,0.65,117.73,117.72,2.02e-06]
[1766089916806,9.45994492,117.73,117.72,2.02e-06]
[1766089917006,0.65,117.72,117.67,11.1710169]
[1766089917207,0.65,117.71,117.68,11.1710169]
[1766089917636,0.65,117.71,117.67,11.1710169]
[1766089917833,0.65,117.71,117.68,11.1710169]
[1766089918011,0.65,117.71,117.65,9.2197875]
[1766089918215,0.65,117.71,117.67,11.1710169]
[1766089918429,0.65,117.7,117.65,11.1710169]
[1766089918618,0.65,117.69,117.65,11.1710169]
[1766089919338,11.1710169,117.71,117.67,11.1710169]
[1766089919339,0.65,117.71,117.67,11.1710169]